Cogmind - Beta 16.1 @@@ ROGUE MODE // 2026.03.26 @ 01:26:52 Player: KURIIRI Result: Self-destructed Performance ------------- Evolutions (0) 0 Regions Visited (3) 600 Robots Destroyed (47) 235 Value Destroyed (824) 824 Prototype IDs (14) 280 Alien Tech Used (0) 0 Bonus (97) 97 TOTAL SCORE: 2036 Bonus ------- Follower Combat Kills 116 Friendly Fire -19 Cogmind --------- Core Integrity 111/250 Matter 300/300 Energy 125/125 System Corruption 0% Temperature Hot (240) Movement Rolling (110) Ox2 Location -9/Scraptown Parts ------- > --- POWER (1) -------- Light Ion Engine > --- PROPULSION (2) --- Wheel Wheel > --- UTILITY (2) ------ High-capacity Storage Unit > --- WEAPON (2) ------- Subdweller Beam Cannon > --- INVENTORY (20) --- Subdweller Power Source Improved Terrain Scanner Tower Shield Subdweller Shrapnel Launcher Peak State ------------ > --- POWER ------------ Light Ion Engine > --- PROPULSION ------- Wheel Wheel > --- UTILITY ---------- High-capacity Storage Unit V3-11A's Pendant > --- WEAPON ----------- EM Pulse Gun Subdweller Beam Cannon > --- INVENTORY -------- Subdweller Power Source Improved Terrain Scanner Tower Shield Subdweller Shrapnel Launcher SUBCON Basin [Rating: 30] Favorites ----------- Power Light Ion Engine Engine Light Ion Engine Propulsion Light Treads Treads Light Treads Leg Aluminum Leg Wheel Wheel Utility High-capacity Storage Unit Device V3-11A's Pendant Storage High-capacity Storage Unit Protection Light Armor Plating Weapon EM Pulse Gun Energy Gun EM Pulse Gun Energy Cannon Subdweller Beam Cannon Ballistic Gun Assault Rifle Launcher Grenade Launcher Build | -11 -10 -10 -9 ------- Run | Yrd Mat Sub Scr Slots Evolved . | . . . . Power . | . . . . Propulsion . | . . . . Utility . | . . . . Weapon . | . . . . Parts Attached 21 | 4 7 10 . Power 2 | . 1 1 . Engine 2 | . 1 1 . Core . | . . . . Reactor . | . . . . Propulsion 5 | 2 . 3 . Treads 2 | 2 . . . Leg . | . . . . Wheel 3 | . . 3 . Hover . | . . . . Flight . | . . . . Utility 6 | 1 3 2 . Device 2 | 1 . 1 . Storage 1 | . 1 . . Processor . | . . . . Hackware . | . . . . Protection 3 | . 2 1 . Artifact . | . . . . Weapon 8 | 1 3 4 . Energy Gun 5 | . 2 3 . Energy Cannon 1 | . . 1 . Ballistic Gun 1 | 1 . . . Ballistic Cannon . | . . . . Launcher 1 | . 1 . . Special Weapon . | . . . . Impact Weapon . | . . . . Slashing Weapon . | . . . . Piercing Weapon . | . . . . Special Melee Weapon . | . . . . Unidentified Prototypes 1 | . . 1 . Parts Lost 9 | . 3 6 . Power 1 | . 1 . . Propulsion 2 | . . 2 . Utility 1 | . . 1 . Weapon 5 | . 2 3 . Highest Loss Streak 2 | . 2 1 . To Critical Strikes . | . . . . Average Backups 7 | 3 7 7 4 Power . | 1 . . 1 Propulsion 1 | 1 . 1 . Utility 3 | . 3 3 2 Weapon 1 | 1 2 1 1 Tool/Special . | . . . . Unused Backups 23 | 2 6 12 3 Power 4 | . 1 2 1 Propulsion 6 | 2 . 4 . Utility 12 | . 5 6 1 Weapon 1 | . . . 1 Tool/Special . | . . . . Average Slot Usage (%) 94 | . 95 94 76 Engine 12 | . 10 14 14 Treads 14 | . 27 6 . Wheel 13 | . . 21 28 Device 7 | . 3 10 5 Storage 11 | . 14 10 14 Protection 6 | . 10 3 . Energy Gun 17 | . 15 20 . Energy Cannon 3 | . . 5 14 Ballistic Gun 1 | . 3 . . Launcher 3 | . 7 1 . Peak Build Rating 30 | 9 9 30 29 Average Rating 11 | 6 7 13 21 On Entrance 12 | 6 9 7 29 Avg Prop Armor Cover (%) 6 | . . 6 . Naked Turns . | . . . . Heaviest Build 54 | 13 53 54 52 Greatest Support 40 | 40 40 40 20 Greatest Overweight (x) 4 | . 1 4 2 Average Overweight (x) 1 | . . 1 2 Largest Inventory Capacity 20 | 8 20 20 20 Average Capacity 13 | 8 10 15 20 Most Carried 20 | 6 11 20 20 Average Carried 9 | 3 7 11 15 Final Capacity 20 | 8 20 20 20 Final Carried 20 | 3 11 20 5 Class Distribution -------------------- 99% | Mutant Dominant Class ---------------- Mutant | -10/Materials Mutant | -10/Subcaves Mutant | -9/Scraptown Resources | -11 -10 -10 -9 ----------- Run | Yrd Mat Sub Scr Matter Collected 1194 | 276 608 310 . Remotely . | . . . . Salvage Created 1357 | 206 816 335 . Parts 110 | 18 61 31 . Haulers Intercepted 1 | . 1 . . Recyclers Shooed 1 | . 1 . . Parts Field Recycled . | . . . . Retrieved Matter . | . . . . Parts Self-Destructed 16 | . . 16 . Prevented . | . . . . Parts Restored . | . . . . Kills | -11 -10 -10 -9 ------- Run | Yrd Mat Sub Scr Combat Hostiles Destroyed 29 | . 19 10 . Guns 12 | . 7 5 . AOE 16 | . 12 4 . Classes Destroyed 10 | 3 5 2 . Worker 2 | 1 1 . . Builder 5 | . 5 . . Tunneler 5 | 4 1 . . Hauler 1 | . 1 . . Recycler 2 | 1 1 . . Watcher 3 | . 3 . . Swarmer 16 | . 8 8 . Grunt 11 | . 11 . . Artisan 2 | . . 2 . Subdweller 2 | . . 2 . Best Kill Streak 4 | 2 4 4 . Combat Bots Only 4 | . 3 4 . Max Kills in Single Turn 3 | 1 3 3 . Gunslinging . | . . . . Exploded 3 | . 3 3 . Melee . | . . . . Uniques/NPCs Destroyed . | . . . . Combat | -11 -10 -10 -9 -------- Run | Yrd Mat Sub Scr Hostile Shots Fired 136 | . 78 58 . Missed 39 | . 19 20 . Hits 97 | . 59 38 . Projectile 97 | . 59 38 . AOE 2 | . . 2 . Critical Strikes 1 | . . 1 . Damage Taken 1290 | . 656 634 . Core 139 | . 61 78 . Absorbed by Shields . | . . . . Regen/Repaired (Parts) 161 | . 161 . . Core Remaining (%) 100 | 100 . . . Volleys Fired 144 | 17 72 49 6 Largest 2 | 2 2 2 1 Hottest 90 | 90 80 80 80 Shots Fired 210 | 34 100 71 5 Gun 172 | 34 86 52 . Cannon 20 | . . 15 5 Launcher 18 | . 14 4 . Special . | . . . . Kinetic 33 | 12 21 . . Thermal 33 | 5 . 23 5 Explosive 18 | . 14 4 . Electromagnetic 126 | 17 65 44 . Robot Hit Streak 21 | 7 11 21 2 Robot Miss Streak 5 | 5 3 4 3 Penetration Max . | . . . . Secondary Targets 1 | . 1 . . Max Gunslinging Chain 1 | . 1 . . Shots Hit Robots 112 | 14 58 38 2 Core Hits 68 | 7 40 20 1 Critical Kills . | . . . . Critical Parts Destroyed . | . . . . Critical Strikes . | . . . . Melee Attacks . | . . . . Impact . | . . . . Slashing . | . . . . Piercing . | . . . . Sneak Attacks . | . . . . Combat Hostiles . | . . . . Follow-up Attacks . | . . . . Damage Inflicted 3016 | 187 2145 625 59 Guns 1388 | 187 796 405 . Cannons 89 | . . 30 59 Explosions 1539 | . 1349 190 . Melee . | . . . . Ramming . | . . . . Kinetic 259 | 58 201 . . Thermal 647 | 24 437 127 59 Explosive 1102 | . 912 190 . Electromagnetic 1008 | 105 595 308 . Impact . | . . . . Slashing . | . . . . Piercing . | . . . . Highest Corruption . | . . . . Average Corruption . | . . . . Corruption Purged . | . . . . Corruption Blocked . | . . . . Overload Shots . | . . . . Overflow Damage 158 | . 153 5 . Projectiles . | . . . . Explosions 158 | . 153 5 . Melee . | . . . . Knockbacks . | . . . . Impact . | . . . . Kinetic . | . . . . Secondary . | . . . . Self-Inflicted Damage 98 | . 37 61 . Shots 4 | . 1 3 . Rammed . | . . . . Targets Rammed . | . . . . Kicked . | . . . . Crushed . | . . . . Highest Temperature 248 | 60 248 . 240 Average Temperature 56 | 23 59 . 130 Received Heat Transfer 375 | . 276 99 . Siege Activations . | . . . . Martial Activations . | . . . . Shielding Activations . | . . . . Robots Disrupted . | . . . . Combat Hostiles . | . . . . Robots Corrupted 2 | . 1 1 . Combat Hostiles 1 | . . 1 . Parts Fried 6 | . 3 3 . Impact Corruptions . | . . . . Robots Melted . | . . . . Combat Hostiles . | . . . . Parts Melted . | . . . . Heat Transferred 881 | 74 400 333 74 Parts Sabotaged . | . . . . Parts Stolen . | . . . . Parts Stripped . | . . . . Power Chain Reactions 2 | . 2 . . Alert | -11 -10 -10 -9 ------- Run | Yrd Mat Sub Scr Maximum Alert Level 1 | . 1 . . Low Security (%) 71 | 100 69 . . Level 1 28 | . 30 . . Level 2 . | . . . . Level 3 . | . . . . Level 4 . | . . . . Level 5 . | . . . . High Security . | . . . . Max Security . | . . . . Peak Influence 295 | 10 295 . . Initial . | . . . . Average 131 | 2 141 . . Influence Increases 1137 | 30 817 290 . Destroy 0b10 Robot/C 540 | . 380 160 . Destroy 0b10 Robot/NC 90 | 30 60 . . Destroy Leader 98 | . 88 10 . Successful Hack 34 | . 34 . . Select Force Hacks 60 | . 60 . . Disable Machine 90 | . 90 . . Destroy Structure 90 | . 90 . . Lose Combat Pursuer 135 | . 15 120 . Influence Decreases 1137 | 30 545 562 . Entered New Map 132 | . . 132 . Time Decay 945 | 30 515 400 . Lost Part 60 | . 30 30 . Squads Dispatched 3 | . 3 . . Investigation 3 | . 3 . . Extermination . | . . . . Reinforcement . | . . . . Assault . | . . . . Garrison . | . . . . Intercept . | . . . . Searches Triggered . | . . . . Construction Impeded . | . . . . Haulers Reinforced . | . . . . Active Scanning Responses . | . . . . Cargo Convoy Interrupts . | . . . . Stealth | -11 -10 -10 -9 --------- Run | Yrd Mat Sub Scr Distress Signals . | . . . . Communications Jammed . | . . . . Distress Signals . | . . . . Times Spotted 52 | . 24 20 8 Peak Tracking Total 12 | . 3 6 12 Tactical Retreats 4 | . 1 3 . Traps | -11 -10 -10 -9 ------- Run | Yrd Mat Sub Scr Traps Triggered 2 | . 1 1 . Indirectly . | . . . . Trap Hack Attempts . | . . . . Triggered . | . . . . Disarmed . | . . . . Reprogrammed . | . . . . Reused . | . . . . Traps Extracted . | . . . . Installed . | . . . . Triggered . | . . . . Machines | -11 -10 -10 -9 ---------- Run | Yrd Mat Sub Scr Machines Disabled 8 | . 6 1 1 Max in Single Turn 4 | . 4 1 . Machines Repaired . | . . . . Machines Dismantled . | . . . . Machines Sabotaged . | . . . . Overloaded Fab Kills . | . . . . Hacking | -11 -10 -10 -9 --------- Run | Yrd Mat Sub Scr Machines Accessed 13 | . 9 4 . Terminals 6 | . 6 . . Fabricators . | . . . . Repair Stations 1 | . 1 . . Recycling Units 2 | . 2 . . Scanalyzers . | . . . . Garrison Access . | . . . . Total Hacks 35 | . 28 7 . Successful 22 | . 15 7 . Failed 12 | . 12 . . Catastrophic . | . . . . Database Lockouts 1 | . 1 . . Manual 23 | . 23 . . Terminals 21 | . 21 . . Fabricators . | . . . . Repair Stations 5 | . 5 . . Recycling Units 2 | . 2 . . Scanalyzers . | . . . . Garrison Access . | . . . . Terminal Hacks 8 | . 1 7 . Record 4 | . . 4 . Robot Analysis 1 | . 1 . . Open Door 1 | . . 1 . Proto ID Catalog 1 | . . 1 . Release Object 1 | . . 1 . Fabricator Hacks . | . . . . Repair Station Hacks 4 | . 4 . . Scan Component 2 | . 2 . . Repair 2 | . 2 . . Recycling Unit Hacks . | . . . . Scanalyzer . | . . . . Garrison Access Hacks . | . . . . Unauthorized Hacks 10 | . 10 . . Terminals 8 | . 8 . . Botnet 2 | . 2 . . Operators 1 | . 1 . . Skim 5 | . 5 . . Fabricators . | . . . . Repair Stations . | . . . . Recycling Units 2 | . 2 . . Tunnel 2 | . 2 . . Scanalyzers . | . . . . Garrison Access . | . . . . Data Cores Recovered . | . . . . Used . | . . . . Hacking Detections 6 | . 6 . . Full Trace Events . | . . . . Feedback Events . | . . . . Feedback Blocked . | . . . . Robot Schematics Acquired . | . . . . Robots Built . | . . . . Authchips . | . . . . Time . | . . . . Total Robot Build Rating . | . . . . Part Schematics Acquired . | . . . . Parts Built . | . . . . Authchips . | . . . . Time . | . . . . Total Part Build Rating . | . . . . Part Studies Acquired . | . . . . Parts Repaired 2 | . 2 . . Time 52 | . 52 . . Parts Recycled . | . . . . Recycled Matter . | . . . . Retrieved Matter . | . . . . Retrieved Components . | . . . . Parts Scanalyzed . | . . . . Part Schematics Acquired . | . . . . Parts Damaged . | . . . . Bothacking | -11 -10 -10 -9 ------------ Run | Yrd Mat Sub Scr Used RIF Installer . | . . . . Robots Hacked . | . . . . Non-combat . | . . . . Combat . | . . . . Robot Hacks Applied . | . . . . Relay Couplers Released . | . . . . Fabnet Peak Effective % . | . . . . Robots Rewired . | . . . . Allies Hacked . | . . . . Hacks Repelled . | . . . . Allies | -11 -10 -10 -9 -------- Run | Yrd Mat Sub Scr Total Allies 8 | . . 8 . Largest Group 7 | . . 7 7 Highest-Rated Group 133 | . . 133 133 Highest-Rated Ally 19 | . . 19 19 Total Orders . | . . . . Ally Attacks 36 | . . 4 32 Total Damage 523 | . . 20 503 Kills 5 | . . . 5 Allies Corrupted . | . . . . Allies Melted . | . . . . Intel | -11 -10 -10 -9 ------- Run | Yrd Mat Sub Scr Active Infowar (turns) 568 | 37 407 124 . Terrain 568 | 37 407 124 . Robot Analysis Total 1 | . 1 . . Derelict Logs Recovered 2 | . . 2 . Drone Launches . | . . . . Drone Recoveries . | . . . . Exploration | -11 -10 -10 -9 ------------- Run | Yrd Mat Sub Scr Turns Passed 4675 | 133 1686 2689 167 Spaces Moved 2759 | 39 701 1897 122 Core . | . . . . Treads 846 | 24 701 121 . Legs 15 | 15 . . . Wheels 1898 | . . 1776 122 Hover . | . . . . Flight . | . . . . Fastest Speed 80 | 120 160 80 110 Average Speed 130 | 144 177 113 110 Slowest Speed 240 | 160 240 240 110 Overloaded Moves . | . . . . Propulsion Burnouts . | . . . . Robots Hopped . | . . . . Potential Cave-ins . | . . . . Cave-ins Triggered . | . . . . Exploration Rate (%) 48 | 3 87 85 18 Regions Visited 3 Branch Regions 2 Pre-discovered Areas 2 | . 2 . . Known Exits Taken 1 | . 1 . . Unknown Exits Taken 2 | 1 . 1 . Scrap Searched 2 | . . 2 . Spaces Dug 20 | . 19 1 . Terrain Destroyed 125 | . 103 19 3 Melee . | . . . . Projectile 7 | . . 4 3 AOE 118 | . 103 15 . Terrain Rammed . | . . . . Walls Destroyed . | . . . . Machines Disabled . | . . . . Actions | -11 -10 -10 -9 --------- Run | Yrd Mat Sub Scr Total 3641 | 82 1045 2365 149 Wait 619 | 18 237 345 19 Move 2756 | 38 700 1896 122 Hop . | . . . . Pick Up 36 | 1 15 20 . Fast Attach 7 | 1 2 4 . Attach 8 | 1 2 5 . Detach . | . . . . Swap 15 | 2 10 3 . Drop 33 | 4 7 21 1 Fire 144 | 17 72 49 6 Melee . | . . . . Ram . | . . . . Kick . | . . . . Crush . | . . . . Escape Stasis . | . . . . Rewire 20 | . . 20 . Trap . | . . . . Miscellaneous 3 | . . 2 1 Route ------- -11/Scrapyard -10/Materials (discovered 5 exits: *Mat x3 / [*Min] / *Sub) -10/Subcaves (discovered 3 exits: *Mat x2 / [*Scr]) -9/Scraptown History --------- Turn | Location | Event 7 | -11/Scrapyard | Discovered new exit (range 3) 134 | -11/Scrapyard | Entered Materials 312 | -10/Materials | Build established: Mutant 353 | -10/Materials | Repaired EM Pulse Gun 409 | -10/Materials | Discovered new exit (range 13) 527 | -10/Materials | Discovered new exit (range 7) 947 | -10/Materials | Discovered new exit (range 16) 1234 | -10/Materials | Central database locked down 1301 | -10/Materials | Learned 2 Storage zone layouts 1360 | -10/Materials | Learned Storage stockpile data 1409 | -10/Materials | Repaired Lgt. Treads 1451 | -10/Materials | Learned Storage trap positions 1482 | -10/Materials | Identified exit to Materials 1482 | -10/Materials | Identified exit to Subcaves 1574 | -10/Materials | Learned location of 2 exits from Materials 1820 | -10/Materials | Entered Subcaves 1821 | -10/Subcaves | Approached by a straggling Scientist 1821 | -10/Subcaves | Identified exit to Materials 1993 | -10/Subcaves | A swath of the cavern ceiling suddenly collapsed 2102 | -10/Subcaves | Scientist uncovered a shortcut to Scraptown 2289 | -10/Subcaves | A swath of the cavern ceiling suddenly collapsed 2347 | -10/Subcaves | Ambushed by angry Subdweller bent on revenge 2668 | -10/Subcaves | Visited triangular shrine 2674 | -10/Subcaves | Found Prototype Device 2674 | -10/Subcaves | Identified V3-11A's Pendant 2679 | -10/Subcaves | Befriended Subdweller 2989 | -10/Subcaves | Befriended Subdweller 3044 | -10/Subcaves | Befriended Subdweller 3088 | -10/Subcaves | Visited Clippyterm 3090 | -10/Subcaves | Learned Factory emergency access door positions 3348 | -10/Subcaves | Core integrity fell below 50% 3349 | -10/Subcaves | Befriended Subdweller 3354 | -10/Subcaves | Befriended Subdweller 3384 | -10/Subcaves | Befriended Subdweller 3384 | -10/Subcaves | Befriended Subdweller 3466 | -10/Subcaves | Shifting Twisted Machinery released Sub. Monowheel 3481 | -10/Subcaves | Shifting Twisted Machinery released Sub. Power Source 3482 | -10/Subcaves | Learned 2 Materials zone layouts 3806 | -10/Subcaves | Learned 8 Materials zone layouts 3957 | -10/Subcaves | Found SUBCON Basin 4324 | -10/Subcaves | Visited 4L-MR0's lab 4340 | -10/Subcaves | Found Tower Shield 4430 | -10/Subcaves | Befriended Subdweller 4509 | -10/Subcaves | Entered Scraptown 4509 | -9/Scraptown | Accompanied by 7 allies 4578 | -9/Scraptown | Delivered V3-11A's Pendant to T0-NE2 in exchange for information 4624 | -9/Scraptown | Released subatomizers from SUBCON Basin 4652 | -9/Scraptown | Attacked by Scraptown defenders 4676 | -9/Scraptown | Self-destructed Last Messages --------------- 04658_ NN-PDN(R) Sub. Monowheel ripped off. 04659_ PN-I16(R) destroyed. 04659_ NA-YK3(r) destroyed. 04664_ NN-PDN(R) destroyed. 04664_ Slug penetrates BN-085(R). 04666_ BN-085(R) suffers critical hit (Destroy). 04666_ Slug penetrates BN-085(R). 04671_ BN-085(R) suffers critical hit (Destroy). 04673_ 45-B02(R) affixes Scrap Shield Fragment to Scrap Shield. 04673_ Y7-M0D(R) affixes Scrap Shield Fragment to Scrap Shield. 04674_ Slug penetrates BN-085(R). 04674_ Sub. Beam Cannon shoots sparks and powers down. 04674_ K1-DDR(E) suffers critical hit (Meltdown). 04676_ 45-B02(R) destroyed. 04676_ DB-AA5(g) suffers critical hit (Destroy). 04676_ DB-AA5(g) destroyed. Map ----- +----------------------------------------------------+ | ???????????????????????????????????????????????? | | ???????????????????????????????????????????????? | | ???????????????????????????????????????????????? | | ???????????????????????????????????????????????? | | ???????????????????????????????????????????????? | | ???????????????????????????????????????????????? | | ???????????????????????????????????????????????? | | ???????????????????????????????????????????????? | | ???????????????????????????????????????????????? | | ???????????????????????????????????????????????? | | ???????????????????????????????????????????????? | | ??????????????????????????? ???????????????????? | | ??????????? ????????????? ???????????????????? | | ??????????? ????????????? ???????????????????? | | ???????????# ????????????? ???????????????????? | | ???????????# ????????????? ???????????????????? | | ???????????# #???????????? ???????????????????? | | ???????????# #??????????## ##?????????????????? | | ???????????# #????????"""" """"???????????????? | | ???????????# #???????? " " ???????????????? | | ???????????# #?????????" "????????????????? | | ???????????# #?????????? " " ?????????????????? | | ???????????# #???????????" "??????????????????? | | ??????????## ##??????????# #??????????????????? | | ??????????# ############%############ #???? | | ??????????# b@ =R%!==R!%!=jp #???? | | ??????????# & [*=//!%[Rx!!% #???? | | ??????????# #;;;################%##?????????? | | ??????????## ###??????????????????????????????? | | ??????###### ########?????????????????????????? | | ??""" """""" """""""#?????????????????????????? | | ?#" """""" " "#?????????????????????????? | | ?#" """"" =[ "#?????????????????????????? | | ?#" " " ![! "#?????????????????????????? | | ??""" " !!] "#?????????????????????????? | | ???""""" " " | "#?????????????????????????? | | ????"""""""" " =! "#?????????????????????????? | | ????######## " !] "#?????????????????????????? | | ?????####### " "#?????????????????????????? | | ???""""""""" """" ""#?????????????????????????? | | ?#"""""""" " #### ###?????????????????????????? | | ??"" " " #### ###?????????????????????????? | | ??"""" " """" ""#?????????????????????????? | | ??""" " "#?????????????????????????? | | ???"""""" " " "" "#?????????????????????????? | | ??""" " " "" "#?????????????????????????? | | ???"""" " " "#?????????????????????????? | | ???""" " " ""#?????????????????????????? | | ???""""" " " """""#?????????????????????????? | | ???""" " """""""#?????????????????????????? | +----------------------------------------------------+ Best States ------------- Heat Dissipation 25 Energy Generation 10 Energy Capacity 250 Matter Stores 300 Matter Capacity 300 Sight Range 16 Terrain Scan Range 16 Terrain Scan Density 10 Armor Coverage 800 Evasion (%) 45 Recoil Reduction 2 Item Schematics ----------------- None Robot Schematics ------------------ None Fabricated ------------ Nothing Repaired ---------- EM Pulse Gun | 6% | -10/Materials Lgt. Treads | 15% | -10/Materials Studied --------- None Alien Tech Used ----------------- None Achievements -------------- Nice Directions, Buddy SUBSUB Challenges ------------ None Game ------ Seed RiotFissionMace Manual? 0 Play Time 00:24:06 Cumulative 363.2 hours Start 2026.03.26 @ 01:03:58 End 2026.03.26 @ 01:26:52 Sessions 1 Manual Loads 0 Difficulty Rogue Special Mode None Game No. 291 Rogue 255 Adventurer 36 Explorer 0 Win Type - Total 5 Types 2/0/0/1/0/0/0/2/0/0 Lore% 67 Gallery% 64 Achievement% 51 Wizard Run 0 Options --------- Layout 1 ASCII 0 Keyboard 0 Movement Numpad Keybinds 0 Fullscreen 1 Font 48/Smallcaps Map View 50x35 Zoom Use 0% Tactical HUD 1 Map Filters NONE Filters NONE Steam 1 RUN: 436d51b3-a61a-4711-906e-178aa6415962